[Event "28th Hit Open-A 2024"]
[Site "Nova Gorica"]
[Date "2024.02.02"]
[Round "9.24"]
[White "Budai, Leonardo"]
[Black "Trybus, Daniel"]
[Result "1-0"]
[ECO "B07"]
[WhiteElo "1847"]
[BlackElo "2039"]
[Annotator "NA"]
[PlyCount "97"]
[EventDate "2024.01.22"]
[EventType "swiss"]
[EventCountry "SLO"]
[SourceTitle "playchess.com"]
[Source "ChessBase"]
[SourceQuality "1"]
[TimeControl "5400+30"]

1. e4 {[%emt 0:00:01]} g6 {[%emt 0:02:05]} 2. d4 {[%emt 0:00:10]} Bg7 {[%emt 0:00:04]} 3. Nc3 {[%emt 0:00:28]} d6 {[%emt 0:00:06]} 4. Bg5 {[%emt 0:08:56]} Nf6 {[%emt 0:00:43]} 5. Qd2 {[%emt 0:00:45]} Na6 {[%emt 0:03:39]} 6. O-O-O {[%emt 0:03:37]} O-O {[%emt 0:01:23]} 7. Bh6 {[%emt 0:00:49]} c5 {[%emt 0:00:27]} 8. Bxg7 {[%emt 0:01:28]} Kxg7 {[%emt 0:00:15]} 9. Bxa6 {[%emt 0:09:31]} bxa6 {[%emt 0:07:23]} 10. dxc5 {[%emt 0:02:00]} Qa5 {[%emt 0:00:16]} 11. cxd6 {[%emt 0:17:40]} Rd8 {[%emt 0:00:10]} 12. Qf4 {[%emt 0:10:48]} e5 {[%emt 0:03:02]} 13. Qg3 {[%emt 0:10:28]} Bg4 {[%emt 0:08:13]} 14. Nf3 {[%emt 0:05:40]} Rac8 {[%emt 0:08:33]} 15. Qxe5 {[%emt 0:16:35]} Qxe5 {[%emt 0:02:33]} 16. Nxe5 {[%emt 0:00:01]} Bxd1 {[%emt 0:00:02]} 17. Rxd1 {[%emt 0:00:19]} g5 {[%emt 0:02:44]} 18. Rd4 {[%emt 0:01:06]} Nd7 {[%emt 0:03:25]} 19. Nxd7 {[%emt 0:02:42]} Rxd7 {[%emt 0:00:12]} 20. e5 {[%emt 0:00:46]} Re8 {[%emt 0:02:07]} 21. Re4 {[%emt 0:01:42]} Kg6 {[%emt 0:01:55]} 22. g4 {[%emt 0:03:56]} f6 {[%emt 0:06:23]} 23. exf6 {[%emt 0:00:54]} Red8 {[%emt 0:03:50]} 24. Re7 {[%emt 0:01:20]} Rxd6 {[%emt 0:00:46]} 25. Rxa7 {[%emt 0:00:18]} Rxf6 {[%emt 0:00:06]} 26. Ne4 {[%emt 0:00:22]} Re6 {[%emt 0:00:17]} 27. f3 {[%emt 0:00:16]} Rf8 {[%emt 0:02:45]} 28. Nc5 {[%emt 0:00:11]} Rc6 {[%emt 0:00:06]} 29. Rxa6 {[%emt 0:00:31]} Rxa6 {[%emt 0:00:03]} 30. Nxa6 {[%emt 0:00:05]} Rxf3 {[%emt 0:00:02]} 31. b4 {[%emt 0:01:22]} h5 {[%emt 0:08:14]} 32. gxh5+ Kxh5 33. b5 {[%emt 0:01:03]} Rf1+ {[%emt 0:02:01]} 34. Kb2 {[%emt 0:01:05]} Kh4 {[%emt 0:00:32]} 35. a4 {[%emt 0:00:25]} Kh3 {[%emt 0:02:05]} 36. b6 {[%emt 0:00:05]} Rf6 {[%emt 0:02:49]} 37. a5 {[%emt 0:00:34]} Rf5 {[%emt 0:00:16]} 38. c4 {[%emt 0:00:27]} Rf2+ {[%emt 0:00:13]} 39. Kc3 {[%emt 0:00:40]} Rf3+ {[%emt 0:00:04]} 40. Kb4 {[%emt 0:00:22]} g4 {[%emt 0:02:50]} 41. b7 {[%emt 0:00:10]} Rf1 {[%emt 0:00:01]} 42. Kb5 {[%emt 0:01:08]} Kxh2 {[%emt 0:00:34]} 43. b8=Q+ {[%emt 0:00:15]} g3 {[%emt 0:00:02]} 44. Qh8+ {[%emt 0:00:20]} Kg2 {[%emt 0:00:11]} 45. c5 {[%emt 0:00:13]} Kf2 {[%emt 0:00:32]} 46. Qd4+ {[%emt 0:00:17]} Kf3 {[%emt 0:00:01]} 47. c6 {[%emt 0:00:23]} g2 {[%emt 0:00:01]} 48. c7 {[%emt 0:00:44]} Rb1+ {[%emt 0:00:24]} 49. Kc6 {[%emt 0:00:30]} 1-0

[Event "28th Hit Open-A 2024"]
[Site "Nova Gorica"]
[Date "2024.02.02"]
[Round "9.25"]
[White "Bazilius, Augustinas"]
[Black "Ivsek, Cveto"]
[Result "1-0"]
[ECO "E11"]
[WhiteElo "2030"]
[BlackElo "1711"]
[Annotator "NA"]
[PlyCount "93"]
[EventDate "2024.01.22"]
[EventType "swiss"]
[EventCountry "SLO"]
[SourceTitle "playchess.com"]
[Source "ChessBase"]
[SourceQuality "1"]
[TimeControl "5400+30"]

1. d4 {[%emt 0:04:22]} d5 {[%emt 0:00:07]} 2. c4 {[%emt 0:00:06]} e6 {[%emt 0:00:34]} 3. Nf3 {[%emt 0:00:02]} Nf6 {[%emt 0:00:46]} 4. g3 {[%emt 0:00:02]} c6 {[%emt 0:02:35]} 5. Bg2 {[%emt 0:00:06]} Bb4+ {[%emt 0:02:29]} 6. Bd2 {[%emt 0:00:21]} Bxd2+ {[%emt 0:00:50]} 7. Nbxd2 {[%emt 0:00:03]} Nbd7 {[%emt 0:00:59]} 8. O-O {[%emt 0:00:11]} O-O {[%emt 0:00:54]} 9. Qc2 {[%emt 0:00:01]} Re8 {[%emt 0:00:44]} 10. Rfd1 {[%emt 0:05:16]} h6 {[%emt 0:02:51]} 11. e4 {[%emt 0:00:13]} dxe4 {[%emt 0:00:37]} 12. Nxe4 {[%emt 0:00:02]} Nxe4 {[%emt 0:00:35]} 13. Qxe4 {[%emt 0:00:03]} Qf6 {[%emt 0:06:35]} 14. Ne5 {[%emt 0:02:11]} a5 {[%emt 0:03:10]} 15. c5 {[%emt 0:01:15]} Qf5 {[%emt 0:00:34]} 16. Qe2 {[%emt 0:01:02]} Nf6 {[%emt 0:00:39]} 17. Nc4 {[%emt 0:00:24]} Rd8 {[%emt 0:03:43]} 18. a4 {[%emt 0:00:17]} Nd5 {[%emt 0:01:15]} 19. Qd2 {[%emt 0:02:03]} Nb4 {[%emt 0:01:20]} 20. Qe2 {[%emt 0:07:02]} Qc2 {[%emt 0:03:00]} 21. Rd2 {[%emt 0:00:01]} Qf5 {[%emt 0:01:47]} 22. Be4 {[%emt 0:00:17]} Qf6 {[%emt 0:00:28]} 23. Ne5 {[%emt 0:03:08]} Nd5 {[%emt 0:01:39]} 24. Ra3 {[%emt 0:00:20]} Qg5 {[%emt 0:02:38]} 25. h4 {[%emt 0:02:23]} Qe7 {[%emt 0:00:11]} 26. Nc4 {[%emt 0:07:02]} Nf6 {[%emt 0:11:39]} 27. Bg2 {[%emt 0:03:33]} Qc7 {[%emt 0:01:11]} 28. Rd1 {[%emt 0:01:58]} Bd7 {[%emt 0:00:28]} 29. Rf3 {[%emt 0:00:41]} Be8 {[%emt 0:00:49]} 30. Qe1 {[%emt 0:02:22]} Nd7 {[%emt 0:03:37]} 31. Rb3 {[%emt 0:00:17]} Ra7 {[%emt 0:00:52]} 32. Rc1 {[%emt 0:07:55]} Nf6 {[%emt 0:01:55]} 33. Nd6 {[%emt 0:01:50]} Rd7 {[%emt 0:02:29]} 34. g4 {[%emt 0:03:42]} Re7 {[%emt 0:04:30]} 35. g5 {[%emt 0:00:48]} hxg5 {[%emt 0:00:06]} 36. hxg5 {[%emt 0:00:04]} Nh7 {[%emt 0:01:34]} 37. f4 {[%emt 0:00:29]} f5 {[%emt 0:01:25]} 38. Re3 {[%emt 0:02:23]} Nf8 {[%emt 0:12:09]} 39. Nxf5 {[%emt 0:01:20]} Rd7 {[%emt 0:01:28]} 40. Nd6 {[%emt 0:01:57]} Rxd6 {[%emt 0:00:05]} 41. cxd6 {[%emt 0:00:06]} Qxd6 {[%emt 0:00:05]} 42. f5 {[%emt 0:00:37]} Qxd4 {[%emt 0:00:52]} 43. Qf2 {[%emt 0:00:03]} Bd7 {[%emt 0:02:55]} 44. f6 {[%emt 0:00:26]} gxf6 {[%emt 0:01:02]} 45. gxf6 {[%emt 0:00:06]} Kf7 {[%emt 0:00:13]} 46. Qe2 {[%emt 0:01:27]} Ng6 {[%emt 0:00:53]} 47. Rd1 {[%emt 0:00:06]} 1-0

[Event "28th Hit Open-A 2024"]
[Site "Nova Gorica"]
[Date "2024.02.02"]
[Round "9.26"]
[White "Zlatanovic, Srdjan"]
[Black "Kejzar, Petra"]
[Result "0-1"]
[ECO "D02"]
[WhiteElo "1675"]
[BlackElo "2025"]
[Annotator "NA"]
[PlyCount "60"]
[EventDate "2024.01.22"]
[EventType "swiss"]
[EventCountry "SLO"]
[SourceTitle "playchess.com"]
[Source "ChessBase"]
[SourceQuality "1"]
[TimeControl "5400+30"]

1. d4 {[%emt 0:01:00]} d5 {[%emt 0:00:06]} 2. Nf3 {[%emt 0:01:28]} e6 {[%emt 0:00:06]} 3. Bf4 {[%emt 0:00:19]} Bd6 {[%emt 0:00:17]} 4. Bg3 {[%emt 0:00:01]} Nf6 {[%emt 0:00:14]} 5. e3 {[%emt 0:00:08]} O-O {[%emt 0:00:31]} 6. c3 {[%emt 0:00:27]} c5 {[%emt 0:00:07]} 7. a4 {[%emt 0:01:08]} Qc7 {[%emt 0:01:47]} 8. Nbd2 {[%emt 0:00:24]} Nbd7 {[%emt 0:00:17]} 9. Bd3 {[%emt 0:01:12]} e5 {[%emt 0:02:43]} 10. dxe5 {[%emt 0:00:32]} Nxe5 {[%emt 0:00:07]} 11. Nxe5 {[%emt 0:00:17]} Bxe5 {[%emt 0:00:02]} 12. Nf3 {[%emt 0:00:12]} Bxg3 {[%emt 0:01:12]} 13. hxg3 {[%emt 0:00:01]} Bg4 {[%emt 0:06:23]} 14. Qb1 {[%emt 0:00:14]} h6 {[%emt 0:00:33]} 15. Ng5 {[%emt 0:03:57]} Qe5 {[%emt 0:08:53]} 16. Nf3 {[%emt 0:05:44]} Qe7 {[%emt 0:01:04]} 17. Kf1 {[%emt 0:12:32]} Rad8 {[%emt 0:02:13]} 18. Nd2 {[%emt 0:09:53]} a6 {[%emt 0:04:54]} 19. a5 {[%emt 0:03:54]} Rfe8 {[%emt 0:05:08]} 20. Ra4 {[%emt 0:00:47]} c4 {[%emt 0:01:56]} 21. Bc2 {[%emt 0:03:52]} Bd7 {[%emt 0:01:20]} 22. Rb4 {[%emt 0:06:52]} Bb5 {[%emt 0:02:41]} 23. Ba4 {[%emt 0:01:34]} d4 {[%emt 0:02:42]} 24. Nxc4 {[%emt 0:28:14]} dxe3 {[%emt 0:00:58]} 25. Bc2 {[%emt 0:10:05]} Bxc4+ {[%emt 0:01:39]} 26. Rxc4 {[%emt 0:01:50]} e2+ {[%emt 0:00:18]} 27. Ke1 {[%emt 0:00:20]} Rd1+ {[%emt 0:00:09]} 28. Bxd1 {[%emt 0:00:43]} exd1=Q+ 29. Kxd1 {[%emt 0:00:22]} Qe2+ {[%emt 0:00:15]} 30. Kc1 {[%emt 0:00:01]} Qxc4 {[%emt 0:00:10]} 0-1

[Event "28th Hit Open-A 2024"]
[Site "Nova Gorica"]
[Date "2024.02.02"]
[Round "9.27"]
[White "Garsky, Vladyslav"]
[Black "Racnik, Tone"]
[Result "1-0"]
[ECO "B09"]
[WhiteElo "2186"]
[BlackElo "1849"]
[Annotator "ChessBase"]
[PlyCount "85"]
[EventDate "2024.01.22"]
[EventType "swiss"]
[EventCountry "SLO"]
[SourceTitle "playchess.com"]
[Source "ChessBase"]
[SourceQuality "1"]
[TimeControl "5400+30"]

1. e4 {[%emt 0:01:01]} d6 {[%emt 0:00:06]} 2. d4 {[%emt 0:00:44]} Nf6 {[%emt 0:00:09]} 3. Nc3 {[%emt 0:00:30]} g6 {[%emt 0:00:39]} 4. f4 {[%emt 0:00:10]} Bg7 {[%emt 0:00:14]} 5. Nf3 {[%emt 0:00:06]} O-O {[%emt 0:00:29]} 6. Bd3 {[%emt 0:00:34]} Nc6 {[%emt 0:00:34]} 7. e5 {[%emt 0:00:28]} dxe5 {[%emt 0:00:16]} 8. fxe5 {[%emt 0:00:05]} Nh5 {[%emt 0:00:45]} 9. Be3 {[%emt 0:00:08]} f6 {[%emt 0:02:00]} 10. exf6 {[%emt 0:04:11]} exf6 {[%emt 0:00:12]} 11. Qd2 {[%emt 0:08:42]} Bg4 {[%emt 0:06:24]} 12. O-O-O {[%emt 0:01:34]} Bxf3 {[%emt 0:05:03]} 13. gxf3 {[%emt 0:00:05]} f5 {[%emt 0:00:09]} 14. Bc4+ {[%emt 0:01:19]} Kh8 {[%emt 0:00:06]} 15. Ne2 {[%emt 0:02:56]} f4 {[%emt 0:02:05]} 16. Bf2 {[%emt 0:02:27]} Qd6 {[%emt 0:03:52]} 17. Nc3 {[%emt 0:07:13]} Qb4 {[%emt 0:07:07]} 18. Qd3 {[%emt 0:10:43]} Rad8 {[%emt 0:06:11]} 19. Nd5 {[%emt 0:01:16]} Qd6 {[%emt 0:04:54]} 20. Bh4 {[%emt 0:18:01]} Rde8 {[%emt 0:04:43]} 21. c3 {[%emt 0:00:47]} Na5 {[%emt 0:01:38]} 22. a3 {[%emt 0:08:09]} c6 {[%emt 0:02:22]} 23. Nb4 {[%emt 0:00:19]} Re3 {[%emt 0:01:20]} 24. Qf1 {[%emt 0:00:04]} Nxc4 {[%emt 0:03:06]} 25. Qxc4 {[%emt 0:00:04]} Rxf3 {[%emt 0:01:29]} 26. Nc2 {[%emt 0:00:20]} Rh3 {[%emt 0:01:42]} 27. Bf2 {[%emt 0:00:32]} f3 {[%emt 0:01:10]} 28. Qc5 {[%emt 0:00:34]} Qb8 {[%emt 0:08:38]} 29. d5 {[%emt 0:02:06]} cxd5 {[%emt 0:02:45]} 30. Nd4 {[%emt 0:00:32]} Qf4+ {[%emt 0:05:11]} 31. Kb1 {[%emt 0:00:25]} Qe4+ {[%emt 0:00:05]} 32. Ka1 {[%emt 0:00:13]} Nf4 {[%emt 0:00:05]} 33. Qxa7 {[%emt 0:01:26]} Ne2 {[%emt 0:05:05]} 34. Qxb7 {[%emt 0:01:47]} Nxd4 {[%emt 0:01:52]} 35. Bxd4 {[%emt 0:00:27]} Bxd4 {[%emt 0:00:07]} 36. Rxd4 {[%emt 0:00:28]} Qe2 {[%emt 0:00:45]} 37. Qd7 {[%emt 0:01:17]} Rh5 {[%emt 0:06:30]} 38. Qd6 {[%emt 0:01:35]} Re8 {[%emt 0:01:57]} 39. Rf4 {[%emt 0:01:10]} d4 {[%emt 0:08:09]} 40. Rf8+ {[%emt 0:03:35]} Kg7 {[%emt 0:00:26]} 41. Qf6+ {[%emt 0:00:05]} Kh6 {[%emt 0:01:07]} 42. Qf4+ {[%emt 0:00:03]} Rg5 {[%emt 0:01:20]} 43. h4 {[%emt 0:01:06]} 1-0

[Event "28th Hit Open-A 2024"]
[Site "Nova Gorica"]
[Date "2024.02.02"]
[Round "9.28"]
[White "Caruso, Augusto"]
[Black "Novak, Rok"]
[Result "1-0"]
[ECO "B11"]
[WhiteElo "2159"]
[BlackElo "1777"]
[Annotator "ChessBase"]
[PlyCount "87"]
[EventDate "2024.01.22"]
[EventType "swiss"]
[EventCountry "SLO"]
[SourceTitle "playchess.com"]
[Source "ChessBase"]
[SourceQuality "1"]
[TimeControl "5400+30"]

1. e4 {[%emt 0:00:04]} c6 {[%emt 0:00:07]} 2. Nf3 {[%emt 0:00:38]} d5 {[%emt 0:00:09]} 3. Nc3 {[%emt 0:00:04]} dxe4 {[%emt 0:00:10]} 4. Nxe4 {[%emt 0:00:05]} Nf6 {[%emt 0:00:08]} 5. Qe2 {[%emt 0:00:05]} Na6 {[%emt 0:00:40]} 6. Nxf6+ {[%emt 0:00:51]} gxf6 {[%emt 0:00:06]} 7. d4 {[%emt 0:00:10]} h5 {[%emt 0:00:57]} 8. Bd2 {[%emt 0:03:35]} h4 {[%emt 0:02:59]} 9. Qe4 {[%emt 0:07:06]} Qd5 {[%emt 0:02:13]} 10. Qxd5 {[%emt 0:03:56]} cxd5 {[%emt 0:00:11]} 11. Bb5+ {[%emt 0:00:20]} Bd7 {[%emt 0:00:17]} 12. Bxd7+ {[%emt 0:00:15]} Kxd7 {[%emt 0:00:12]} 13. h3 {[%emt 0:00:06]} Bh6 {[%emt 0:02:24]} 14. Be3 {[%emt 0:06:30]} Nb4 {[%emt 0:01:50]} 15. Kd2 {[%emt 0:00:27]} Bxe3+ {[%emt 0:03:04]} 16. fxe3 {[%emt 0:00:05]} Rag8 {[%emt 0:00:44]} 17. Rhg1 {[%emt 0:02:00]} e6 {[%emt 0:03:25]} 18. Raf1 {[%emt 0:02:01]} Nc6 {[%emt 0:00:53]} 19. Ne1 {[%emt 0:02:14]} Rg6 {[%emt 0:00:40]} 20. Rf4 {[%emt 0:07:04]} Ne7 {[%emt 0:00:20]} 21. b3 {[%emt 0:08:58]} b5 {[%emt 0:02:28]} 22. e4 {[%emt 0:13:41]} dxe4 {[%emt 0:03:34]} 23. Rxe4 {[%emt 0:00:44]} Nf5 {[%emt 0:02:19]} 24. Rf4 {[%emt 0:03:53]} Rhg8 {[%emt 0:05:46]} 25. Kd3 {[%emt 0:09:02]} Ke7 {[%emt 0:05:22]} 26. Rgf1 {[%emt 0:02:14]} Rd8 {[%emt 0:07:14]} 27. c4 {[%emt 0:02:17]} bxc4+ {[%emt 0:14:32]} 28. bxc4 {[%emt 0:00:07]} Rg3+ {[%emt 0:02:03]} 29. R1f3 {[%emt 0:00:14]} Rgg8 {[%emt 0:01:25]} 30. Kc3 {[%emt 0:03:17]} Rc8 {[%emt 0:01:42]} 31. c5 {[%emt 0:05:08]} Rc7 {[%emt 0:04:11]} 32. Kc4 {[%emt 0:02:24]} Nd6+ {[%emt 0:01:49]} 33. Kd3 {[%emt 0:00:39]} Nf5 {[%emt 0:00:22]} 34. Rxf5 {[%emt 0:05:02]} exf5 {[%emt 0:00:33]} 35. Kc4 {[%emt 0:00:08]} Rb8 {[%emt 0:04:47]} 36. Nd3 {[%emt 0:00:29]} a5 {[%emt 0:01:42]} 37. d5 {[%emt 0:01:51]} Rcb7 {[%emt 0:00:38]} 38. Re3+ {[%emt 0:02:30]} Kd8 {[%emt 0:00:21]} 39. d6 {[%emt 0:00:11]} f4 {[%emt 0:01:38]} 40. Re4 {[%emt 0:01:05]} f5 {[%emt 0:01:28]} 41. Re5 {[%emt 0:00:30]} Kd7 {[%emt 0:01:09]} 42. Kd5 {[%emt 0:00:42]} Rb5 {[%emt 0:00:21]} 43. Re7+ {[%emt 0:00:41]} Kd8 {[%emt 0:00:09]} 44. Ne5 {[%emt 0:01:27]} 1-0

[Event "28th Hit Open-A 2024"]
[Site "Nova Gorica"]
[Date "2024.02.02"]
[Round "9.29"]
[White "Mestek, Igor"]
[Black "Pagano, Sergio"]
[Result "0-1"]
[ECO "B11"]
[WhiteElo "2080"]
[BlackElo "1821"]
[Annotator "NA"]
[PlyCount "140"]
[EventDate "2024.01.22"]
[EventType "swiss"]
[EventCountry "SLO"]
[SourceTitle "playchess.com"]
[Source "ChessBase"]
[SourceQuality "1"]
[TimeControl "5400+30"]

1. e4 {[%emt 0:01:48]} c6 {[%emt 0:00:15]} 2. Nf3 {[%emt 0:00:07]} d5 {[%emt 0:00:40]} 3. Nc3 {[%emt 0:00:09]} dxe4 {[%emt 0:02:29]} 4. Nxe4 {[%emt 0:00:09]} Nf6 {[%emt 0:01:59]} 5. Qe2 {[%emt 0:00:42]} Nxe4 {[%emt 0:03:32]} 6. Qxe4 {[%emt 0:00:06]} Nd7 {[%emt 0:02:58]} 7. Bc4 {[%emt 0:00:09]} Nf6 {[%emt 0:02:24]} 8. Ne5 {[%emt 0:00:21]} e6 {[%emt 0:00:59]} 9. Qe2 {[%emt 0:00:06]} Qd4 {[%emt 0:03:21]} 10. c3 {[%emt 0:09:11]} Qe4 {[%emt 0:01:24]} 11. O-O {[%emt 0:04:55]} Qxe2 {[%emt 0:01:28]} 12. Bxe2 {[%emt 0:00:06]} Bd6 {[%emt 0:03:47]} 13. f4 {[%emt 0:02:45]} Nd5 {[%emt 0:06:02]} 14. d4 {[%emt 0:00:40]} f6 {[%emt 0:02:42]} 15. Nd3 {[%emt 0:01:30]} b6 {[%emt 0:02:06]} 16. c4 {[%emt 0:04:27]} Nb4 {[%emt 0:00:53]} 17. Ne1 {[%emt 0:00:47]} e5 {[%emt 0:03:53]} 18. a3 {[%emt 0:01:06]} Na6 {[%emt 0:00:18]} 19. fxe5 {[%emt 0:01:00]} fxe5 {[%emt 0:00:25]} 20. Bh5+ {[%emt 0:02:53]} g6 {[%emt 0:01:49]} 21. Bf3 {[%emt 0:00:07]} Bb7 {[%emt 0:02:19]} 22. Nd3 {[%emt 0:03:57]} exd4 {[%emt 0:02:18]} 23. Bg5 {[%emt 0:00:10]} O-O {[%emt 0:01:01]} 24. b4 {[%emt 0:00:07]} Rf7 {[%emt 0:00:52]} 25. Bg4 {[%emt 0:01:26]} Rxf1+ {[%emt 0:05:45]} 26. Rxf1 {[%emt 0:00:08]} Rf8 {[%emt 0:00:22]} 27. Bf6 {[%emt 0:01:09]} Bc8 {[%emt 0:01:50]} 28. Bxc8 {[%emt 0:01:34]} Rxc8 {[%emt 0:00:06]} 29. Bxd4 {[%emt 0:00:10]} c5 {[%emt 0:00:24]} 30. bxc5 {[%emt 0:02:46]} Nxc5 {[%emt 0:00:07]} 31. Ne5 {[%emt 0:13:10]} Bxe5 {[%emt 0:01:33]} 32. Bxe5 {[%emt 0:00:09]} Nd3 {[%emt 0:00:21]} 33. Bd6 {[%emt 0:00:21]} Rxc4 {[%emt 0:00:23]} 34. Rf8+ {[%emt 0:00:41]} Kg7 {[%emt 0:00:14]} 35. h3 {[%emt 0:00:07]} Rd4 {[%emt 0:05:22]} 36. Rd8 {[%emt 0:00:42]} Kf7 {[%emt 0:00:13]} 37. Rf8+ {[%emt 0:02:45]} Ke6 {[%emt 0:01:33]} 38. Bb8 {[%emt 0:04:27]} Ra4 {[%emt 0:02:53]} 39. Rh8 {[%emt 0:03:52]} Rxa3 {[%emt 0:03:11]} 40. Rxh7 {[%emt 0:00:08]} a6 {[%emt 0:02:06]} 41. Rg7 {[%emt 0:01:20]} Kf6 {[%emt 0:00:33]} 42. Rb7 {[%emt 0:01:22]} b5 {[%emt 0:01:06]} 43. Bd6 {[%emt 0:00:22]} Ra1+ {[%emt 0:03:29]} 44. Kh2 {[%emt 0:00:07]} Ra2 {[%emt 0:00:54]} 45. Kg1 {[%emt 0:01:14]} Ne1 {[%emt 0:03:35]} 46. g4 {[%emt 0:00:59]} Nf3+ {[%emt 0:00:39]} 47. Kf1 {[%emt 0:00:19]} Ke6 {[%emt 0:00:49]} 48. Bg3 {[%emt 0:05:06]} g5 {[%emt 0:01:15]} 49. Bc7 {[%emt 0:01:34]} Kd5 {[%emt 0:00:49]} 50. Bd8 {[%emt 0:00:06]} Kc4 {[%emt 0:02:15]} 51. Rf7 {[%emt 0:02:51]} Nd2+ {[%emt 0:01:11]} 52. Ke1 {[%emt 0:00:13]} b4 {[%emt 0:02:12]} 53. Bxg5 {[%emt 0:00:45]} Ne4 {[%emt 0:00:49]} 54. Rc7+ {[%emt 0:00:28]} Kd3 {[%emt 0:00:58]} 55. Rd7+ {[%emt 0:00:17]} Kc2 {[%emt 0:00:41]} 56. Bh6 {[%emt 0:00:22]} Ra1+ {[%emt 0:01:01]} 57. Ke2 {[%emt 0:00:08]} Nc3+ {[%emt 0:00:18]} 58. Kf3 {[%emt 0:01:05]} Rf1+ {[%emt 0:01:23]} 59. Ke3 {[%emt 0:00:17]} Re1+ {[%emt 0:00:41]} 60. Kf2 {[%emt 0:00:11]} Rd1 {[%emt 0:00:15]} 61. Rb7 {[%emt 0:02:39]} b3 {[%emt 0:00:32]} 62. Bg7 {[%emt 0:00:21]} Rd3 {[%emt 0:01:24]} 63. h4 {[%emt 0:01:10]} b2 {[%emt 0:00:20]} 64. Rxb2+ {[%emt 0:00:43]} Kxb2 {[%emt 0:00:05]} 65. h5 {[%emt 0:00:06]} a5 {[%emt 0:01:34]} 66. h6 {[%emt 0:00:25]} a4 {[%emt 0:00:13]} 67. h7 {[%emt 0:00:56]} Rh3 {[%emt 0:00:21]} 68. h8=Q {[%emt 0:00:53]} Rxh8 {[%emt 0:00:06]} 69. Bxh8 {[%emt 0:00:08]} a3 {[%emt 0:00:18]} 70. Ke3 {[%emt 0:00:15]} Kc2 {[%emt 0:00:07]} 0-1

[Event "28th Hit Open-A 2024"]
[Site "Nova Gorica"]
[Date "2024.02.02"]
[Round "9.30"]
[White "Hozjan, Erik"]
[Black "Rigatti, Giorgio"]
[Result "1/2-1/2"]
[ECO "B20"]
[WhiteElo "1897"]
[BlackElo "1749"]
[Annotator "NA"]
[PlyCount "80"]
[EventDate "2024.01.22"]
[EventType "swiss"]
[EventCountry "SLO"]
[SourceTitle "playchess.com"]
[Source "ChessBase"]
[SourceQuality "1"]
[TimeControl "5400+30"]

1. e4 {[%emt 0:00:02]} c5 {[%emt 0:09:39]} 2. Nc3 {[%emt 0:00:12]} d6 {[%emt 0:00:19]} 3. Bc4 {[%emt 0:00:16]} e6 {[%emt 0:00:21]} 4. Nge2 {[%emt 0:00:14]} a6 {[%emt 0:00:37]} 5. a4 {[%emt 0:00:06]} Nf6 {[%emt 0:00:22]} 6. d3 {[%emt 0:00:29]} Nc6 {[%emt 0:00:49]} 7. O-O {[%emt 0:01:24]} Be7 {[%emt 0:00:35]} 8. Ng3 {[%emt 0:00:22]} Bd7 {[%emt 0:03:10]} 9. Ba2 {[%emt 0:00:28]} Qc7 {[%emt 0:05:49]} 10. f4 {[%emt 0:01:00]} h5 {[%emt 0:07:32]} 11. f5 {[%emt 0:03:46]} h4 {[%emt 0:01:23]} 12. fxe6 {[%emt 0:00:00]} fxe6 {[%emt 0:05:20]} 13. Nge2 {[%emt 0:00:00]} h3 {[%emt 0:00:52]} 14. g3 {[%emt 0:00:00]} Nh5 {[%emt 0:05:42]} 15. Nf4 {[%emt 0:00:40]} Nxf4 {[%emt 0:00:18]} 16. Bxf4 {[%emt 0:00:15]} O-O-O {[%emt 0:00:36]} 17. Qd2 {[%emt 0:02:54]} Nd4 {[%emt 0:05:38]} 18. Ne2 {[%emt 0:00:37]} Nxe2+ {[%emt 0:00:56]} 19. Qxe2 {[%emt 0:00:05]} e5 {[%emt 0:03:24]} 20. Bd2 {[%emt 0:00:07]} Kb8 {[%emt 0:04:56]} 21. Rf7 {[%emt 0:02:38]} Bf6 {[%emt 0:01:43]} 22. Bd5 {[%emt 0:08:39]} Qc8 {[%emt 0:07:34]} 23. b4 {[%emt 0:03:23]} Bc6 {[%emt 0:03:02]} 24. b5 {[%emt 0:05:05]} Bxd5 {[%emt 0:01:29]} 25. exd5 {[%emt 0:00:05]} e4 {[%emt 0:10:17]} 26. Rb1 {[%emt 0:05:28]} a5 {[%emt 0:00:28]} 27. dxe4 {[%emt 0:03:43]} b6 {[%emt 0:08:45]} 28. Rf1 {[%emt 0:32:36]} Rd7 {[%emt 0:01:40]} 29. R1xf6 {[%emt 0:03:37]} gxf6 {[%emt 0:00:14]} 30. Rxf6 {[%emt 0:00:04]} Re8 {[%emt 0:07:01]} 31. Qg4 {[%emt 0:03:25]} Rde7 {[%emt 0:00:16]} 32. Qg6 {[%emt 0:03:34]} Rg8 {[%emt 0:02:11]} 33. Qh6 {[%emt 0:00:39]} Qg4 {[%emt 0:02:08]} 34. Rf8+ {[%emt 0:12:04]} Kc7 {[%emt 0:01:15]} 35. Rxg8 {[%emt 0:03:18]} Qd1+ {[%emt 0:00:22]} 36. Kf2 {[%emt 0:00:06]} Rf7+ 37. Bf4 {[%emt 0:00:10]} Qxc2+ {[%emt 0:00:10]} 38. Ke3 {[%emt 0:00:36]} Qb3+ {[%emt 0:00:07]} 39. Ke2 {[%emt 0:00:13]} Qc2+ {[%emt 0:00:05]} 40. Ke3 {[%emt 0:00:13]} Qb3+ {[%emt 0:00:07]} 1/2-1/2

[Event "28th Hit Open-A 2024"]
[Site "Nova Gorica"]
[Date "2024.02.02"]
[Round "9.31"]
[White "Mazzi, Leonardo"]
[Black "Kekic, Urban"]
[Result "1/2-1/2"]
[ECO "C42"]
[WhiteElo "1647"]
[BlackElo "1885"]
[Annotator "NA RC"]
[PlyCount "26"]
[EventDate "2024.01.22"]
[EventType "swiss"]
[EventCountry "SLO"]
[SourceTitle "playchess.com"]
[Source "ChessBase"]
[SourceQuality "1"]
[TimeControl "5400+30"]

1. e4 {[%emt 0:00:25]} e5 {[%emt 0:00:05]} 2. Nf3 {[%emt 0:00:13]} Nf6 {[%emt 0:00:10]} 3. Nxe5 {[%emt 0:00:05]} d6 {[%emt 0:00:05]} 4. Nf3 {[%emt 0:00:01]} Nxe4 {[%emt 0:00:07]} 5. d4 {[%emt 0:00:04]} d5 {[%emt 0:00:16]} 6. Bd3 {[%emt 0:00:09]} Bd6 {[%emt 0:00:31]} 7. Nbd2 {[%emt 0:00:30]} Nxd2 {[%emt 0:07:01]} 8. Bxd2 {[%emt 0:00:26]} Bg4 {[%emt 0:05:21]} 9. O-O {[%emt 0:01:02]} O-O {[%emt 0:01:00]} 10. Re1 {[%emt 0:04:11]} Qf6 {[%emt 0:16:56]} 11. Be2 {[%emt 0:13:22]} Bxf3 {[%emt 0:12:13]} 12. Bxf3 {[%emt 0:00:03]} c6 {[%emt 0:01:13]} 13. Be3 {[%emt 0:02:14]} Nd7 {[%emt 0:04:26]} 1/2-1/2